bitfinex-derivatives/quotes_SOLF0:USTF0_20241212
["timestamp","ask_amount","ask_price","bid_price","bid_amount"]
[1734015276367,3.18,232.09,232.01,2.1542]
[1734015276569,3.18,232.09,231.91,16.6271195]
[1734015276769,3.18,232.09,231.9,3.18]
[1734015277083,3.18,232.09,231.92,5.08684196]
[1734015277874,3.18,232.09,231.96,2.1547]
[1734015278576,2.1543,232.02,231.97,2.1546]
[1734015278778,3.18,232.09,231.92,5.08684196]
[1734015278974,2.1542,232.02,231.92,5.08684196]
[1734015279279,2.1542,232.02,231.97,2.1546]
[1734015279774,16.6271195,232.07,231.88,2.7845]
[1734015279981,3.18,232.02,231.88,2.7845]
[1734015280874,2.1545,232.0,231.94,2.1549]
[1734015281072,3.18,232.02,231.88,2.7845]
[1734015281473,3.18,232.07,231.91,21.8772904]
[1734015281677,3.18,232.08,231.91,21.8772904]
[1734015281979,3.18,232.12,231.95,16.6271195]
[1734015282280,3.18,232.12,231.96,4.5967]
[1734015282677,1.3375,232.2,231.99,16.6271195]
[1734015282982,0.71134714,232.19,232.0,2.6942]
[1734015283176,2.1527,232.18,232.03,16.6271195]
[1734015283377,8.2945733,232.2,232.04,3.18]
[1734015283582,2.1528,232.17,232.04,3.18]
[1734015284278,3.18,232.2,232.08,2.1536]
[1734015284471,3.18,232.2,232.04,8.39748534]
[1734015284880,2.153,232.15,232.09,2.1535]
[1734015285075,3.18,232.2,232.04,5.21748534]
[1734015285277,2.1532,232.13,232.07,2.1537]
[1734015285476,3.18,232.2,232.07,2.1537]
[1734015285779,0.71126203,232.19,232.07,2.1537]
[1734015286085,2.1533,232.12,232.07,2.1537]
[1734015286281,3.18,232.2,232.07,2.1537]
[1734015286479,3.18,232.2,232.04,5.21748534]
[1734015286683,0.71127815,232.19,232.04,5.21748534]
[1734015287485,3.18,232.2,232.04,5.21748534]
[1734015287685,2.1529,232.16,232.11,2.1533]
[1734015289789,2.1528,232.18,232.12,2.1533]
[1734015290086,1.3302,232.23,232.04,5.21748534]
[1734015290383,2.1526,232.2,232.15,2.1529]
[1734015293592,2.1526,232.2,232.16,2.1529]
[1734015293789,2.1524,232.21,232.08,3.18]
[1734015294090,2.1524,232.21,232.09,1.3594]
[1734015294694,2.1524,232.21,232.16,2.1529]
[1734015295396,2.1521,232.25,232.19,2.1526]
[1734015295588,3.18,232.26,232.09,1.3594]
[1734015295988,2.1521,232.25,232.09,1.3594]
[1734015296197,16.6271195,232.3,232.09,1.3594]
[1734015296494,3.18,232.27,232.09,1.3594]
[1734015296691,2.1525,232.21,232.15,2.1529]
[1734015296890,2.1525,232.21,232.09,1.3594]
[1734015297094,2.1525,232.21,232.1,2.7297]
[1734015298596,2.1525,232.21,232.15,2.1529]
[1734015298902,3.18,232.27,232.1,2.7297]
[1734015299101,16.6271195,232.26,232.1,2.7297]
[1734015299301,10.3923906,232.23,232.12,2.1532]
[1734015299703,10.3923906,232.23,232.1,2.7297]
[1734015299995,2.1528,232.18,232.1,4.8831]
[1734015300201,2.1528,232.18,232.1,2.7297]
[1734015300404,2.1529,232.17,232.1,2.7297]
[1734015300603,10.3923906,232.23,232.1,2.7297]
[1734015300902,13.5723906,232.27,232.1,2.7297]
[1734015301094,10.3923906,232.27,232.13,10.3923906]
[1734015301292,3.18,232.28,232.13,10.3923906]
[1734015301795,3.18,232.28,232.17,2.1528]
[1734015302206,2.1526,232.19,232.13,12.5454906]
[1734015302504,2.1526,232.19,232.13,10.3923906]
[1734015302702,2.1532,232.13,232.1,1.4046]
[1734015303098,2.1532,232.13,232.07,2.1537]
[1734015303297,3.18,232.2,232.06,3.18]
[1734015304109,3.18,232.22,232.06,3.18]
[1734015304408,3.18,232.22,232.07,2.1537]
[1734015304603,10.3923906,232.19,232.05,10.3923906]
[1734015304902,10.3923906,232.19,232.03,1.4323]
[1734015305110,10.3923906,232.19,232.04,2.154]
[1734015305600,10.3923906,232.19,232.03,1.4323]
[1734015305601,2.1535,232.09,232.05,2.1539]
[1734015305798,3.18,232.14,232.02,2.7176]
[1734015306100,2.1538,232.07,232.02,2.1542]
[1734015306300,3.18,232.14,232.01,10.6664306]
[1734015306499,3.7723,232.21,232.05,10.3923906]
[1734015306697,3.7723,232.21,232.09,10.3923906]
[1734015306898,3.18,232.25,232.09,10.3923906]
[1734015307108,2.1525,232.21,232.16,2.1529]
[1734015308202,3.18,232.25,232.14,2.153]
[1734015308404,3.18,232.25,232.1,4.0853]
[1734015308603,2.7501,232.27,232.1,4.0853]
[1734015308802,3.16,232.26,232.1,4.0853]
[1734015309307,2.1523,232.23,232.1,4.0853]
[1734015309806,3.16,232.26,232.14,2.153]
[1734015309999,3.16,232.26,232.11,3.16]
[1734015310397,3.16,232.26,232.12,5.25126798]
[1734015310702,5.9146,232.29,232.12,5.25126798]
[1734015311000,2.7546,232.29,232.12,21.87023289]
[1734015311602,2.1519,232.27,232.17,2.1528]
[1734015311807,4.5568,232.3,232.12,21.87023289]
[1734015312301,3.16,232.3,232.12,21.87023289]
[1734015312504,46.2379,232.34,232.12,21.87023289]
[1734015312700,2.1518,232.29,232.22,2.1523]
[1734015313108,3.16,232.33,232.22,2.1523]
[1734015313704,3.16,232.33,232.12,21.87023289]
[1734015313906,2.1518,232.28,232.12,21.87023289]
[1734015314810,6.69305875,232.34,232.12,21.87023289]
[1734015314811,2.1517,232.3,232.12,21.87023289]
[1734015315210,9.85305875,232.34,232.12,21.87023289]
[1734015316010,2.1518,232.28,232.12,21.87023289]
[1734015316407,9.85305875,232.34,232.23,2.1522]
[1734015316706,2.1517,232.3,232.18,3.16]
[1734015317013,19.77896491,232.4,232.29,2.1517]
[1734015317314,150.41911917,232.43,232.26,3.16]
[1734015317504,1.4534,232.43,232.27,4.1107]
[1734015317704,26.76034357,232.44,232.27,4.1107]
[1734015317705,49.05929024,232.44,232.27,4.1107]
[1734015318014,4.5811,232.47,232.28,16.61896491]
[1734015318909,2.1505,232.42,232.34,2.1512]
[1734015319104,4.5811,232.47,232.28,16.61896491]
[1734015319105,1.4211,232.47,232.28,16.61896491]
[1734015319305,4.5811,232.47,232.28,16.61896491]
[1734015319504,4.5811,232.47,232.37,2.1509]
[1734015319709,4.5811,232.47,232.33,3.16]
[1734015320106,4.5811,232.47,232.36,2.151]
[1734015320310,4.5811,232.47,232.33,3.16]
[1734015320517,16.61896491,232.45,232.31,5.2438085]
[1734015320710,16.61896491,232.45,232.32,2.1514]
[1734015320917,16.61896491,232.45,232.31,5.2438085]
[1734015321214,4.5811,232.47,232.31,5.2438085]
[1734015321716,2.1505,232.43,232.35,2.151]
[1734015321917,4.5811,232.47,232.35,2.151]
[1734015322216,4.5811,232.47,232.31,5.2438085]
[1734015322415,2.1505,232.42,232.31,5.2438085]
[1734015323214,2.1505,232.42,232.37,2.1509]
[1734015323620,2.1503,232.44,232.37,2.1509]
[1734015324010,3.16,232.48,232.31,5.2438085]
[1734015324210,2.7836,232.51,232.31,5.2438085]
[1734015325315,2.1498,232.5,232.44,2.1502]
[1734015325620,1.3302,232.51,232.44,2.1502]
[1734015325813,2.1498,232.49,232.44,2.1502]
[1734015326120,3.16,232.53,232.38,3.16]
[1734015326121,4.5395,232.58,232.39,2.8314]
[1734015326315,2.1491,232.57,232.42,16.61896491]
[1734015326519,1.3764,232.59,232.5,2.1497]
[1734015326721,1.3764,232.59,232.42,3.16]
[1734015327022,2.1496,232.52,232.42,3.16]
[1734015328022,2.1497,232.51,232.45,2.1502]
[1734015328216,19.77896491,232.57,232.4,4.5807]
[1734015328522,2.1497,232.51,232.45,2.1502]
[1734015328820,19.77896491,232.57,232.43,5.20605822]
[1734015329211,19.77896491,232.57,232.4,1.4207]
[1734015329417,16.61896491,232.53,232.39,2.8314]
[1734015329717,2.1504,232.43,232.38,2.1508]
[1734015329917,1.3764,232.59,232.35,3.16]
[1734015329918,19.77896491,232.49,232.35,3.16]
[1734015330118,3.16,232.48,232.35,3.16]
[1734015330621,16.61896491,232.45,232.28,4.531]
[1734015331417,1.3786,232.47,232.33,5.04312523]
[1734015331922,2.1505,232.42,232.37,2.1509]
[1734015332420,2.1507,232.4,232.35,2.1511]
[1734015332718,19.77896491,232.45,232.28,4.531]
[1734015333118,3.16,232.45,232.32,5.27085595]
[1734015333422,3.16,232.5,232.32,5.27085595]
[1734015333627,21.89291923,232.49,232.32,5.27085595]
[1734015334120,16.61896491,232.49,232.32,5.27085595]
[1734015334324,3.16,232.5,232.32,5.27085595]
[1734015334521,2.7441,232.52,232.33,16.61896491]
[1734015334819,2.7441,232.52,232.34,1.3982]
[1734015335018,2.7441,232.52,232.35,3.16]
[1734015335221,5.18903925,232.52,232.35,4.5506]
[1734015335928,5.18903925,232.52,232.35,1.3906]
[1734015336625,5.18903925,232.52,232.39,2.1507]
[1734015337418,5.18903925,232.52,232.41,2.1505]
[1734015337619,5.18903925,232.52,232.35,1.3906]
[1734015338117,5.18903925,232.52,232.43,2.1504]
[1734015338318,2.15,232.48,232.43,2.1504]
[1734015338722,2.1497,232.51,232.46,2.1501]
[1734015338926,1.4424,232.54,232.39,3.16]
[1734015339123,2.7471,232.59,232.4,1.3685]
[1734015339324,2.1493,232.55,232.42,10.35907127]
[1734015339725,3.16,232.58,232.42,10.35907127]
[1734015339926,2.1497,232.51,232.42,10.35907127]
[1734015340130,10.35907127,232.55,232.4,1.3685]
[1734015341029,2.1496,232.52,232.4,1.3685]
[1734015341428,2.1497,232.51,232.45,2.1501]
[1734015342631,2.1497,232.51,232.4,1.3685]
[1734015342632,2.1497,232.51,232.46,2.1501]
[1734015343130,4.1732,232.57,232.43,2.1503]
[1734015343326,16.57799196,232.56,232.4,1.3685]
[1734015344033,16.57799196,232.56,232.41,2.1505]
[1734015344326,16.57799196,232.52,232.4,1.3685]
[1734015344523,3.16,232.51,232.4,2.1507]
[1734015345028,3.16,232.51,232.35,2.7823]
[1734015345726,16.57799196,232.56,232.45,2.1501]
[1734015346035,3.16,232.55,232.35,2.7823]
[1734015346733,16.57799196,232.52,232.35,2.7823]
[1734015346929,16.57799196,232.52,232.35,1.3917]
[1734015347123,16.57799196,232.52,232.32,5.27085595]
[1734015347124,3.16,232.55,232.32,5.27085595]
[1734015347326,16.57799196,232.52,232.32,5.27085595]
[1734015347729,16.57799196,232.52,232.38,2.1508]
[1734015348132,16.57799196,232.52,232.32,5.27085595]
[1734015348333,16.57799196,232.52,232.39,2.1507]
[1734015349135,2.1504,232.44,232.39,2.1507]
[1734015349338,3.16,232.48,232.32,5.27085595]
[1734015349535,2.1507,232.4,232.32,5.27085595]
[1734015349733,2.8767,232.47,232.35,0.55138]
[1734015349933,16.57799196,232.44,232.35,0.55138]
[1734015350133,2.151,232.36,232.35,0.55138]
[1734015350938,3.16,232.41,232.35,0.55138]
[1734015351430,3.16,232.41,232.37,2.1509]
[1734015351627,3.16,232.41,232.35,0.55138]
[1734015351828,3.16,232.46,232.35,0.55138]
[1734015352133,3.16,232.5,232.35,0.55138]
[1734015352335,3.16,232.5,232.36,2.8141]
[1734015352541,2.15,232.47,232.43,2.1503]
[1734015353838,2.15,232.48,232.43,2.1503]
[1734015354039,3.16,232.52,232.43,2.1503]
[1734015354441,2.1499,232.48,232.44,2.1503]
[1734015354837,3.16,232.52,232.36,2.8141]
[1734015355435,2.1501,232.46,232.41,2.1505]
[1734015355637,3.16,232.52,232.41,2.1505]
[1734015356045,19.73799196,232.52,232.36,1.3624]
[1734015356247,16.57799196,232.48,232.35,0.55138]
[1734015357442,23.35478085,232.47,232.35,0.55138]
[1734015357639,1.0,232.47,232.35,0.55138]
[1734015357842,2.151,232.37,232.35,0.55138]
[1734015358043,3.16,232.4,232.35,0.55138]
[1734015358247,3.16,232.39,232.35,0.55138]
[1734015358448,2.151,232.36,232.35,0.55138]
[1734015358846,3.16,232.39,232.35,0.55138]
[1734015359244,1.4404,232.46,232.35,0.55138]
[1734015359245,3.16,232.45,232.35,0.55138]
[1734015359651,2.1505,232.42,232.39,2.1507]
[1734015359952,3.16,232.45,232.35,0.55138]
[1734015360353,2.1505,232.43,232.38,2.1508]
[1734015360649,3.16,232.45,232.35,0.55138]
[1734015361248,2.1504,232.44,232.38,2.1508]
[1734015361553,3.16,232.45,232.35,0.55138]
[1734015361751,2.151,232.36,232.35,0.55138]
[1734015362656,3.16,232.37,232.23,1.3651]
[1734015362657,2.1515,232.32,232.23,1.3651]
[1734015362850,3.16,232.37,232.23,1.3651]
[1734015363052,2.1517,232.3,232.23,1.3651]
[1734015363251,19.73799196,232.37,232.23,1.3651]
[1734015363455,19.73799196,232.37,232.23,2.1522]
[1734015363456,1.4151,232.36,232.23,2.1522]
[1734015363657,2.1517,232.3,232.2,3.16]
[1734015363859,3.16,232.35,232.2,3.16]
[1734015364159,4.5401,232.35,232.19,6.59399195]
[1734015364366,16.57799196,232.33,232.15,1.3258]
[1734015365353,16.57799196,232.33,232.15,6.506966]
[1734015365552,16.57799196,232.33,232.2,2.1525]
[1734015365751,16.57799196,232.33,232.15,6.506966]
[1734015366558,6.22300792,232.34,232.17,16.57799196]
[1734015366559,3.16,232.32,232.17,16.57799196]
[1734015366856,3.16,232.32,232.27,2.1518]
[1734015367057,6.22300792,232.34,232.17,19.73799196]
[1734015367249,3.16,232.34,232.17,19.73799196]
[1734015367655,2.1515,232.31,232.17,19.73799196]
[1734015368053,3.16,232.34,232.17,19.73799196]
[1734015368253,2.1514,232.32,232.17,19.73799196]
[1734015368456,3.16,232.34,232.17,19.73799196]
[1734015368657,6.4557171,232.36,232.17,19.73799196]
[1734015368658,4.5751,232.36,232.29,2.1516]
[1734015369360,5.3111,232.36,232.17,19.73799196]
[1734015369556,5.3111,232.36,232.31,2.1515]
[1734015369867,3.16,232.38,232.21,16.57799196]
[1734015370056,1.4497,232.41,232.33,2.1513]
[1734015370057,2.1508,232.39,232.33,2.1513]
[1734015370261,2.1508,232.39,232.25,3.16]
[1734015370458,3.16,232.4,232.26,1.4252]
[1734015370661,2.1509,232.38,232.32,2.1513]
[1734015371060,2.1509,232.38,232.26,1.4252]
[1734015371263,5.3107,232.4,232.26,1.4252]
[1734015371557,0.17359,232.44,232.27,16.57799196]
[1734015371766,0.17359,232.44,232.39,2.1508]
[1734015372164,0.17359,232.44,232.27,16.57799196]
[1734015373066,0.17359,232.44,232.26,1.4252]
[1734015373067,0.17359,232.44,232.31,16.57799196]
[1734015373262,0.17359,232.44,232.32,5.8423]
[1734015374566,0.17359,232.44,232.33,5.27005001]
[1734015375461,0.17359,232.44,232.43,2.1504]
[1734015376066,2.1495,232.53,232.47,2.15]
[1734015376664,3.16,232.59,232.43,16.57799196]
[1734015376862,148.96571917,232.65,232.43,16.57799196]
[1734015377064,3.16,232.64,232.43,16.57799196]
[1734015377268,5.12051536,232.65,232.43,16.57799196]
[1734015377871,2.1487,232.62,232.55,2.1493]
[1734015378063,5.12051536,232.65,232.55,2.1493]
[1734015378271,3.16,232.66,232.49,3.16]
[1734015379273,2.1486,232.63,232.57,2.1491]
[1734015380073,2.1484,232.65,232.49,3.16]
[1734015380276,16.57799196,232.72,232.51,16.57799196]
[1734015380472,0.70951629,232.71,232.51,16.57799196]
[1734015380767,0.70951629,232.71,232.52,1.3233]
[1734015381071,2.1481,232.68,232.62,2.1486]
[1734015381469,3.16,232.72,232.62,2.1486]
[1734015382178,19.73799196,232.72,232.54,1.3463]
[1734015382472,16.57799196,232.68,232.54,1.3463]
[1734015382867,16.57799196,232.68,232.55,2.1493]
[1734015383574,16.57799196,232.68,232.54,1.3463]
[1734015384076,1.3575,232.67,232.51,3.16]
[1734015384275,1.4128,232.66,232.48,9.60682016]
[1734015384481,3.16,232.65,232.48,9.60682016]
[1734015384772,3.16,232.65,232.54,2.1494]
[1734015385075,3.16,232.65,232.48,9.60682016]
[1734015385371,2.1492,232.56,232.48,6.44682016]
[1734015385577,2.1492,232.56,232.46,3.16]
[1734015385578,3.16,232.58,232.44,2.6672]
[1734015385880,3.16,232.57,232.47,2.1499]
[1734015386168,3.16,232.57,232.47,5.24761868]
[1734015386375,3.16,232.57,232.5,2.1497]
[1734015386673,3.16,232.57,232.44,2.6672]
[1734015386871,3.16,232.57,232.46,2.1501]
[1734015387176,3.16,232.57,232.45,5.08609791]
[1734015387669,3.16,232.6,232.45,5.08609791]
[1734015387871,3.16,232.6,232.54,2.1494]
[1734015388074,3.16,232.6,232.47,3.16]
[1734015388475,2.1491,232.58,232.47,3.16]
[1734015388675,3.16,232.6,232.47,3.16]
[1734015388975,19.73799196,232.6,232.45,5.08609791]
[1734015389175,19.73799196,232.6,232.44,2.6672]
[1734015389566,19.73799196,232.6,232.44,6.59469522]
[1734015389771,19.73799196,232.6,232.41,1.3302]
[1734015389772,16.57799196,232.55,232.41,1.3302]
[1734015389973,2.1499,232.49,232.43,2.1503]
[1734015390172,16.57799196,232.55,232.43,2.1503]
[1734015390173,3.16,232.52,232.43,2.1503]
[1734015390483,2.1498,232.5,232.43,2.1503]
[1734015390676,3.16,232.52,232.41,6.57065929]
[1734015390876,3.16,232.52,232.45,2.1502]
[1734015391078,3.16,232.52,232.41,6.57065929]
[1734015391378,3.16,232.57,232.5,2.1497]
[1734015391581,3.16,232.57,232.42,1.4175]
[1734015391777,2.1492,232.56,232.42,1.4175]
[1734015391978,3.16,232.57,232.42,17.99549196]
[1734015392682,7.3631,232.64,232.42,17.99549196]
[1734015392884,7.3631,232.64,232.46,16.57799196]
[1734015393072,7.3631,232.64,232.47,4.4809]
[1734015393273,2.1491,232.57,232.47,4.4809]
[1734015393479,7.3631,232.64,232.47,4.4809]
[1734015393679,16.57799196,232.63,232.47,4.4809]
[1734015394281,16.57799196,232.63,232.5,2.1497]
[1734015394479,16.57799196,232.63,232.47,4.4809]
[1734015394681,16.57799196,232.63,232.47,1.3209]
[1734015394984,2.149,232.59,232.47,1.3209]
[1734015395179,3.16,232.59,232.47,1.3209]
[1734015395484,2.1493,232.56,232.51,2.1496]
[1734015395785,2.1493,232.56,232.47,1.3209]
[1734015396278,2.149,232.58,232.47,1.3209]
[1734015396584,3.16,232.59,232.47,1.3209]
[1734015396781,4.2031,232.64,232.47,1.3209]
[1734015396977,2.149,232.58,232.47,1.3209]
[1734015397178,3.16,232.62,232.47,1.3209]
[1734015397580,2.149,232.58,232.53,2.1495]
[1734015398185,2.764,232.64,232.47,1.3209]
[1734015398186,5.924,232.64,232.47,1.3209]
[1734015398483,1.3512,232.64,232.49,3.16]
[1734015398680,2.1487,232.62,232.53,2.1494]
[1734015398880,2.1487,232.62,232.49,3.16]
[1734015399577,2.1485,232.64,232.59,2.1488]
[1734015399777,1.3263,232.7,232.5,16.57799196]
[1734015400187,2.1481,232.69,232.51,2.7837]
[1734015400682,1.3263,232.7,232.62,2.1486]
[1734015400884,2.1481,232.68,232.62,2.1486]
[1734015401082,1.3263,232.7,232.57,3.16]
[1734015401883,1.3263,232.7,232.57,8.24972574]
[1734015402088,8.2425644,232.73,232.57,8.24972574]
[1734015402291,2.1481,232.68,232.62,2.1485]
[1734015402484,8.2425644,232.73,232.58,1.343]
[1734015402785,8.2425644,232.73,232.51,2.7837]
[1734015402786,16.57799196,232.71,232.51,2.7837]
[1734015402986,16.57799196,232.67,232.51,2.7837]
[1734015403182,5.8659,232.66,232.51,6.54760465]
[1734015403586,5.8659,232.66,232.47,3.16]
[1734015403587,16.57799196,232.63,232.47,3.16]
[1734015403985,2.1491,232.57,232.51,2.1496]
[1734015404288,3.16,232.59,232.51,2.1496]
[1734015404888,3.16,232.59,232.49,5.16349735]
[1734015404889,3.16,232.65,232.49,5.16349735]
[1734015405385,5.3084,232.65,232.49,5.16349735]
[1734015405586,1.0,232.7,232.49,5.16349735]
[1734015406284,2.1483,232.66,232.49,5.16349735]
[1734015407590,1.0,232.7,232.6,2.1487]
[1734015407791,1.0,232.7,232.53,3.16]
[1734015408191,2.1484,232.64,232.58,2.1489]
[1734015409083,1.0,232.7,232.56,2.1491]
[1734015409287,16.57799196,232.67,232.56,2.1491]
[1734015410292,2.1488,232.61,232.56,2.1491]
[1734015410588,1.0,232.7,232.54,1.3771]
[1734015410789,60.76977761,232.76,232.57,16.57799196]
[1734015410790,329.08358217,232.76,232.57,16.57799196]
[1734015410992,183.81652294,232.78,232.58,1.3376]
[1734015411294,2.1477,232.72,232.67,2.1481]
[1734015411689,16.57799196,232.8,232.73,2.1476]
[1734015411893,2.6653,232.81,232.61,19.73799196]
[1734015412188,2.6653,232.81,232.69,2.1479]
[1734015412388,19.73799196,232.8,232.63,3.16]
[1734015413190,19.73799196,232.8,232.69,2.148]
[1734015413392,19.73799196,232.8,232.65,5.12938041]
[1734015413890,2.1475,232.75,232.65,5.12938041]
[1734015414090,19.73799196,232.8,232.65,6.55398041]
[1734015414292,2.1474,232.76,232.69,2.1479]
[1734015414490,3.16,232.79,232.69,2.1479]
[1734015414793,16.57799196,232.8,232.65,6.55398041]
[1734015415089,2.6653,232.81,232.7,2.1479]
[1734015415090,2.1473,232.76,232.7,2.1479]
[1734015415295,5.8253,232.81,232.65,6.55398041]
[1734015415793,16.57799196,232.8,232.65,6.55398041]
[1734015416392,2.1477,232.72,232.68,2.1481]
[1734015416593,2.1477,232.72,232.65,6.55398041]
[1734015416594,16.57799196,232.8,232.65,6.55398041]
[1734015416788,5.8253,232.81,232.65,6.55398041]
[1734015417194,2.1476,232.74,232.65,6.55398041]
[1734015417394,5.8253,232.81,232.65,6.55398041]
[1734015417787,16.57799196,232.78,232.65,1.4246]
[1734015417994,16.57799196,232.78,232.58,1.3376]
[1734015417995,16.57799196,232.78,232.59,3.16]
[1734015418293,16.57799196,232.78,232.65,2.1483]
[1734015419000,2.6653,232.81,232.63,5.23237358]
[1734015419500,2.1474,232.76,232.71,2.1477]
[1734015420089,2.1472,232.77,232.66,3.16]
[1734015420293,2.6653,232.81,232.66,3.16]
[1734015420595,5.8253,232.81,232.66,3.16]
[1734015420801,2.6653,232.81,232.66,3.16]
[1734015420999,2.1472,232.78,232.74,2.1475]
[1734015421892,2.1473,232.77,232.72,2.1476]
[1734015422093,2.6653,232.81,232.66,3.16]
[1734015422294,16.57799196,232.8,232.66,3.16]
[1734015422492,2.6653,232.81,232.66,3.16]
[1734015422697,1.3143,232.81,232.66,3.16]
[1734015422901,3.16,232.85,232.67,1.4386]
[1734015423097,3.16,232.85,232.74,2.1475]
[1734015423401,16.57799196,232.82,232.68,1.3296]
[1734015423598,16.57799196,232.82,232.69,2.148]
[1734015423996,2.1476,232.74,232.69,2.148]
[1734015424195,5.23943349,232.83,232.74,2.1475]
[1734015424404,16.57799196,232.89,232.71,3.14]
[1734015424596,2.147,232.81,232.71,3.14]
[1734015424799,2.147,232.81,232.77,2.1472]
[1734015425097,16.57799196,232.89,232.71,3.14]
[1734015425402,2.1469,232.81,232.71,3.14]
[1734015425594,16.57799196,232.89,232.71,3.14]
[1734015426201,2.1467,232.83,232.78,2.1471]
[1734015426402,5.12046839,232.88,232.71,3.14]
[1734015426803,2.1469,232.81,232.75,2.1474]
[1734015426998,2.1469,232.81,232.71,3.14]
[1734015427397,2.147,232.8,232.71,3.14]
[1734015427596,1.3216,232.87,232.69,1.3892]
[1734015427802,16.57799196,232.85,232.69,1.3892]
[1734015427996,2.1476,232.74,232.69,1.3892]
[1734015428304,16.57799196,232.81,232.68,1.3296]
[1734015428502,2.1476,232.74,232.69,2.148]
[1734015428701,2.1476,232.74,232.68,1.3296]
[1734015428901,3.14,232.8,232.68,1.3296]
[1734015429209,3.14,232.8,232.65,3.14]
[1734015429704,16.57799196,232.77,232.62,2.7698]
[1734015429904,2.8568,232.76,232.62,2.7698]
[1734015430104,2.1479,232.7,232.66,2.1482]
[1734015431102,2.1478,232.71,232.67,2.1482]
[1734015431297,2.8568,232.76,232.62,2.7698]
[1734015433304,1.4459,232.76,232.62,2.7698]
[1734015433911,2.1477,232.73,232.68,2.148]
[1734015434411,2.1477,232.72,232.68,2.148]
[1734015434604,1.4459,232.76,232.62,2.7698]
[1734015435005,2.1476,232.73,232.62,2.7698]
[1734015435311,1.4459,232.76,232.62,2.7698]
[1734015435610,3.14,232.8,232.62,2.7698]
[1734015435804,1.393,232.79,232.62,2.7698]
[1734015436011,2.1481,232.69,232.62,2.7698]
[1734015436211,16.57799196,232.77,232.64,2.1484]
[1734015436409,1.3747,232.76,232.54,16.57799196]
[1734015436606,16.57799196,232.73,232.55,3.20342]
[1734015436810,4.4703,232.72,232.55,5.35349525]
[1734015437008,2.1485,232.64,232.59,2.1489]
[1734015437204,3.14,232.69,232.59,2.1489]
[1734015437505,3.14,232.69,232.57,5.03620749]
[1734015437704,2.1481,232.68,232.64,2.1484]
[1734015438705,2.148,232.69,232.64,2.1484]
[1734015438915,2.148,232.69,232.65,2.1483]
[1734015439313,2.1481,232.68,232.64,2.1484]
[1734015439612,1.3303,232.72,232.57,5.03620749]
[1734015440009,3.14,232.75,232.58,16.57799196]
[1734015440213,1.393,232.79,232.58,16.57799196]
[1734015441218,2.1476,232.73,232.65,2.1483]
[1734015441513,1.393,232.79,232.65,2.1483]
[1734015441709,0.70920841,232.78,232.58,16.57799196]
[1734015441912,1.393,232.79,232.57,5.03620749]
[1734015442308,2.1476,232.74,232.63,2.1485]
[1734015442610,2.1476,232.74,232.63,3.14]
[1734015443410,2.1478,232.71,232.63,3.14]
[1734015443617,16.57799196,232.77,232.58,3.14]
[1734015443814,3.14,232.76,232.58,3.14]
[1734015444214,2.1482,232.68,232.58,3.14]
[1734015444412,4.5398,232.76,232.58,3.14]
[1734015444722,16.57799196,232.73,232.57,5.03620749]
[1734015445021,16.57799196,232.63,232.55,2.15007525]
[1734015445216,2.1492,232.56,232.55,2.15007525]
[1734015446618,16.57799196,232.59,232.47,0.32122]
[1734015447340,2.1496,232.51,232.47,0.32122]
[1734015447630,19.71799196,232.55,232.47,0.32122]
[1734015447828,2.1498,232.49,232.47,0.32122]
[1734015448326,16.57799196,232.59,232.47,0.32122]
[1734015448533,3.14,232.58,232.47,0.32122]